fUSD/lending_fUSD_20260313
["ID","MTS","AMOUNT","RATE_DAILY","PERIOD"]
[408292061,1773360001512,5002.79912878,8e-05,2]
[408292074,1773360128817,1000.0,0.000135,2]
[408292075,1773360147011,1969.63071581,0.0001,2]
[408292076,1773360148267,500.0,9.346e-05,2]
[408292077,1773360149548,269.64939665,0.000107,2]
[408292078,1773360155968,881.82075876,9.5e-05,3]
[408292079,1773360155995,10000.01,9.5e-05,3]
[408292080,1773360156019,10000.01,9.5e-05,3]
[408292081,1773360156042,10000.01,9.5e-05,3]
[408292082,1773360156066,10000.01,9.5e-05,3]
[408292083,1773360156089,10000.01,9.5e-05,3]
[408292084,1773360156115,10000.01,9.5e-05,3]
[408292085,1773360156137,10000.01,9.5e-05,3]
[408292086,1773360156161,10000.01,9.5e-05,3]
[408292087,1773360156184,10000.01,9.5e-05,3]
[408292088,1773360156212,392.33966568,9.5e-05,3]
[408292089,1773360156420,1326.92848059,9.5e-05,3]
[408292090,1773360156448,332.01075348,9.5e-05,3]
[408292091,1773360156474,366.29277341,9.5e-05,3]
[408292092,1773360156499,245.4734,9.5e-05,3]
[408292093,1773360156524,394.0,9.5e-05,3]
[408292094,1773360156550,175.84376146,9.5e-05,3]
[408292095,1773360156576,164.95,9.5e-05,3]
[408292096,1773360156602,455.78418235,9.5e-05,3]
[408292097,1773360156628,327.55430245,9.5e-05,3]
[408292098,1773360156657,448.36761694,9.5e-05,3]
[408292099,1773360156710,40.63238306,0.0001,2]
[408292100,1773360156740,213.17266879,0.0001,2]
[408292101,1773360156767,166.66,0.0001,2]
[408292102,1773360156793,166.66,0.0001,2]
[408292103,1773360156819,166.66,0.0001,2]
[408292104,1773360156845,167.42836757,0.0001,2]
[408292105,1773360156871,332.57163243,0.0001,2]
[408292106,1773360156896,500.0,0.0001,2]
[408292107,1773360156920,554.5751417,0.0001,2]
[408292108,1773360156946,460.77044559,0.0001,2]
[408292110,1773360185416,205.0,0.00014345,2]
[408292111,1773360185734,205.0,0.00014345,2]
[408292112,1773360185980,205.0,0.00014345,2]
[408292113,1773360191277,158.0,0.00014345,2]
[408292114,1773360258663,-174.0,0.00014345,3]
[408292115,1773360258693,-158.0,0.00014345,3]
[408292116,1773360306754,165.0,0.00014345,2]
[408292117,1773360310478,150.0,0.00014345,2]
[408292119,1773360367064,164.0,0.00014345,2]
[408292120,1773360371308,-634.623854,0.00014427,2]
[408292121,1773360371336,-394.0,0.000145,5]
[408292122,1773360371359,-500.0,0.00014595,2]
[408292123,1773360371383,-1897.83,0.00014595,2]
[408292124,1773360371406,-250.0,0.00014595,2]
[408292125,1773360371429,-271.0,0.00014595,2]
[408292126,1773360371452,-15810.2723297,0.00014595,2]
[408292127,1773360371476,-300.0,0.00014994,2]
[408292128,1773360371501,-1200.0,0.00014999,2]
[408292129,1773360371524,-500.0,0.00015,30]
[408292130,1773360371548,-500.0,0.00015,30]
[408292131,1773360371572,-500.0,0.00015,30]
[408292132,1773360371596,-500.0,0.00015,30]
[408292133,1773360371620,-500.0,0.00015,30]
[408292134,1773360371642,-500.0,0.00015,30]
[408292135,1773360371669,-500.0,0.00015,30]
[408292136,1773360371695,-1897.83,0.00015081,2]
[408292137,1773360371722,-1897.83,0.00015568,2]
[408292138,1773360371746,-300.0,0.00015568,30]
[408292139,1773360371770,-3918.27,0.00015828,2]
[408292140,1773360371792,-267.92599902,0.000159,2]
[408292141,1773360371815,-150.0,0.000159,2]
[408292142,1773360371838,-150.0,0.00015911,2]
[408292143,1773360371862,-1897.83,0.00016054,2]
[408292144,1773360371885,-250.0,0.00016054,2]
[408292145,1773360371909,-300.0,0.00016054,2]
[408292146,1773360371933,-250.0,0.00016054,2]
[408292147,1773360371955,-5052.45520807,0.00016054,2]
[408292148,1773360371978,-648.96564869,0.00016054,2]
[408292149,1773360372002,-500.0,0.00016054,2]
[408292150,1773360372024,-150.99,0.00016116,2]
[408292151,1773360372046,-9999.99,0.00016116,2]
[408292152,1773360372069,-158.533703,0.00016176,7]
[408292153,1773360372092,-38833.38,0.000162,5]
[408292154,1773360372115,-164.0,0.00016222,3]
[408292155,1773360372138,-2027.56,0.00016257,2]
[408292156,1773360372162,-396.0,0.0001641,2]
[408292157,1773360372186,-1680.0,0.00016499,2]
[408292158,1773360372212,-1897.83,0.00016541,2]
[408292159,1773360372236,-150.0,0.00016892,3]
[408292160,1773360372261,-837.72888683,0.000169,2]
[408292161,1773360372464,-1986.64207809,0.000169,2]
[408292162,1773360372487,-32369.4214,0.000169,2]
[408292163,1773360372510,-6876.78621537,0.000169,2]
[408292164,1773360372532,-209.00429843,0.00016999,2]
[408292165,1773360372557,-530.93312718,0.00016999,2]
[408292166,1773360372581,-500.0,0.00016999,2]
[408292167,1773360372604,-588.31017,0.00016999,2]
[408292168,1773360372627,-408.40551988,0.00016999,2]
[408292169,1773360372649,-452329.37577562,0.00017,2]
[408292170,1773360372672,-507.0,0.00017,2]
[408292171,1773360372697,-152.22165155,0.00017,2]
[408292172,1773360374734,254.71054848,0.00016999,2]
[408292173,1773360378304,500.0,0.00016999,2]
[408292174,1773360378352,500.0,0.00016999,2]
[408292175,1773360378400,500.0,0.00016999,2]
[408292176,1773360378449,500.0,0.00016999,2]
[408292177,1773360378505,500.0,0.00016999,2]
[408292178,1773360378567,572.5668342,0.00016999,2]
[408292179,1773360378620,500.0,0.00016999,2]
[408292180,1773360378668,500.0,0.00016999,2]
[408292181,1773360378727,500.0,0.00016999,2]
[408292182,1773360378832,500.0,0.00016999,2]
[408292183,1773360378875,500.0,0.00016999,2]
[408292184,1773360378921,500.0,0.00016999,2]
[408292185,1773360378966,500.0,0.00016999,2]
[408292186,1773360379010,500.0,0.00016999,2]
[408292187,1773360379192,500.0,0.00016999,2]
[408292188,1773360379225,500.0,0.00016999,2]
[408292189,1773360379265,500.0,0.00016999,2]
[408292190,1773360379296,500.0,0.00016999,2]
[408292191,1773360379328,500.0,0.00016999,2]
[408292192,1773360379377,500.0,0.00016999,2]
[408292193,1773360379501,500.0,0.00016999,2]
[408292194,1773360379624,500.0,0.00016999,2]
[408292195,1773360383956,502.99997,0.00017,2]
[408292196,1773360408181,500.0,0.00014197,2]
[408292197,1773360408383,345.0,0.0001277,2]
[408292198,1773360424777,156.0,0.00014339,2]
[408292199,1773360437793,500.0,0.00012,2]
[408292200,1773360438286,500.0,0.00012,2]
[408292201,1773360438852,552.87558561,0.00012,2]
[408292202,1773360443665,500.0,0.00012,2]
[408292203,1773360444177,891.86330138,0.00012,2]
[408292204,1773360447794,500.0,9.339e-05,2]
[408292205,1773360448297,500.0,9.339e-05,2]
[408292206,1773360448758,500.0,9.339e-05,2]
[408292207,1773360452040,500.0,9.339e-05,2]
[408292208,1773360469647,500.0,0.00014339,2]
[408292209,1773360484862,156.0,0.00014339,2]
[408292210,1773360506326,202.93,0.00013327,2]
[408292211,1773360550662,156.0,0.0001434,2]
[408292212,1773360567127,-150.0,0.00014999,2]
[408292213,1773360567152,-500.0,0.00015,30]
[408292214,1773360567175,-500.0,0.00015,30]
[408292215,1773360567199,-500.0,0.00015,30]
[408292216,1773360567222,-500.0,0.00015,30]
[408292217,1773360567245,-500.0,0.00015,30]
[408292218,1773360567267,-500.0,0.00015,30]
[408292219,1773360567293,-500.0,0.00015,30]
[408292220,1773360567316,-612.85322587,0.00015,30]
[408292221,1773360567340,-500.0,0.00015,30]
[408292222,1773360567364,-500.0,0.00015,30]
[408292223,1773360567388,-294.13583413,0.00015,30]
[408292236,1773360631727,-156.0,0.00015,3]
[408292237,1773360631737,-115.90586894,0.00015,3]
[408292238,1773360631749,-38.09413106,0.00015,3]
[408292239,1773360631759,-205.86416587,0.00015,30]
[408292240,1773360631771,-500.0,0.00015,30]
[408292241,1773360631782,-80.87170307,0.00015,30]
[408292242,1773360631795,-419.12829693,0.00015,30]
[408292243,1773360631808,-255.0,0.00016124,2]
[408292244,1773360631820,-285.0,0.00016124,2]
[408292245,1773360631830,-223.66013105,0.00016373,2]
[408292246,1773360631839,-1200.0,0.00016472,2]
[408292247,1773360631848,-195.0,0.00016473,2]
[408292248,1773360631858,-195.0,0.00016473,2]
[408292249,1773360631867,-195.0,0.00016473,2]
[408292250,1773360631876,-195.0,0.00016473,2]
[408292251,1773360631885,-197.61017159,0.00016473,2]
[408292252,1773360631894,-200.0,0.00016473,2]
[408292253,1773360631904,-251.43601383,0.00016473,2]
[408292254,1773360631913,-3240.0,0.00016842,2]
[408292255,1773360631922,-11680.76787423,0.000169,2]
[408292256,1773360631933,-2800.96661148,0.000169,2]
[408292309,1773360632595,-17767.08401429,0.000169,2]
[408292310,1773360632604,-166.66,0.00016976,2]
[408292311,1773360632613,-250.0,0.00016982,2]
[408292312,1773360632623,-2500.0,0.00016988,2]
[408292313,1773360632632,-301.55680895,0.0001699,2]
[408292314,1773360632641,-151.0,0.0001699,2]
[408292315,1773360632651,-151.0,0.0001699,2]
[408292316,1773360632660,-151.0,0.0001699,2]
[408292317,1773360632669,-151.0,0.0001699,2]
[408292318,1773360632678,-151.0,0.0001699,2]
[408292319,1773360632688,-151.0,0.0001699,2]
[408292320,1773360632697,-151.0,0.0001699,2]
[408292321,1773360632707,-151.0,0.0001699,2]
[408292322,1773360632717,-151.0,0.0001699,2]
[408292323,1773360632726,-151.0,0.0001699,2]
[408292324,1773360632736,-151.0,0.0001699,2]
[408292325,1773360632745,-151.0,0.0001699,2]
[408292326,1773360632754,-151.0,0.0001699,2]
[408292327,1773360632763,-151.0,0.0001699,2]
[408292328,1773360632776,-151.0,0.0001699,2]
[408292329,1773360632786,-151.0,0.0001699,2]
[408292330,1773360632795,-151.0,0.0001699,2]
[408292331,1773360632804,-151.0,0.0001699,2]
[408292332,1773360632814,-151.0,0.0001699,2]
[408292333,1773360632823,-151.0,0.0001699,2]
[408292334,1773360632832,-507.0,0.00017,2]
[408292335,1773360632843,-223.66013104,0.00017,2]
[408292336,1773360632852,-250.0,0.00017006,2]
[408292337,1773360632861,-1897.83,0.00017027,2]
[408292338,1773360632870,-2500.0,0.00017041,2]
[408292339,1773360632879,-2500.0,0.00017041,2]
[408292340,1773360632888,-2500.0,0.00017041,2]
[408292341,1773360632898,-1000.0,0.00017099,2]
[408292342,1773360632907,-47472.99852006,0.000171,2]
[408292343,1773360632921,-30149.37972567,0.000171,2]
[408292344,1773360632931,-659.666722,0.000171,7]
[408292345,1773360632940,-156.0,0.00017187,3]
[408292346,1773360632949,-3634.95355233,0.00017233,2]
[408292347,1773360632960,-280.63250004,0.00017233,2]
[408292348,1773360632984,-476.97880591,0.00017233,2]
[408292349,1773360632995,-768.20081395,0.00017233,2]
[408292350,1773360633006,-344.81,0.00017233,2]
[408292351,1773360633017,-1371.21054305,0.00017233,2]
[408292352,1773360633027,-2000.0,0.00017294,2]
[408292353,1773360633036,-395.39347124,0.00017294,2]
[408292361,1773360638033,-6603.73169913,0.00017294,2]
[408292515,1773360643215,-3723.58224588,0.00017294,2]
[408292516,1773360643232,-2389.15347552,0.00017294,2]
[408292517,1773360643249,-722.8955016,0.00017294,2]
[408292575,1773360646488,-1365.64360663,0.00017294,2]
[408292577,1773360646499,-134.35639337,0.00017334,2]
[408292731,1773360887539,2610.65,0.00014268,2]
[408292732,1773360906791,154.0,0.00014344,2]
[408292733,1773360907110,156.0,0.00014344,2]
[408292734,1773360966768,156.0,0.00014344,2]
[408292735,1773361025041,156.0,0.00014344,2]
[408292737,1773361084811,156.0,0.00014344,2]
[408292738,1773361147694,156.0,0.00014344,2]
[408292740,1773361207535,154.0,0.00014344,2]
[408292741,1773361207596,156.0,0.00014344,2]
[408292742,1773361267128,156.0,0.00014344,2]
[408292743,1773361327383,156.0,0.00014344,2]
[408292744,1773361384948,156.0,0.00014344,2]
[408292745,1773361446998,156.0,0.00014344,2]
[408292746,1773361505773,156.0,0.00014344,2]
[408292747,1773361507079,154.0,0.00014344,2]
[408292748,1773361533025,5533.0,0.000123,5]
[408292750,1773361564942,156.0,0.00014344,2]
[408292751,1773361584611,-250.0,0.00015,2]
[408292752,1773361584632,-274.0,0.00015,2]
[408292753,1773361611003,-250.0,0.0001546,2]
[408292754,1773361630339,156.0,0.000155,2]
[408292755,1773361684628,156.0,0.000156,2]
[408292756,1773361808294,154.0,0.000146,2]
[408292767,1773361832724,-3130.093291,0.00015919,2]
[408292768,1773361832733,-283.0,0.00015919,2]
[408292769,1773361832743,-1200.0,0.00015999,2]
[408292770,1773361832752,-300.0,0.00015999,2]
[408292771,1773361832761,-4617.96025076,0.00016,7]
[408292772,1773361832771,-487.18143312,0.00016,7]
[408292773,1773361832780,-2572.32,0.00016289,2]
[408292774,1773361832789,-6949.47,0.00016327,2]
[408292775,1773361832798,-200.0,0.00016331,2]
[408292776,1773361832808,-1020.8,0.00016367,2]
[408292777,1773361832817,-2000.0,0.00016388,2]
[408292778,1773361832826,-418.0,0.000164,3]
[408292779,1773361832841,-970.85,0.00016419,2]
[408292780,1773361832850,-192.68,0.000165,2]
[408292781,1773361832860,-220.48,0.00016557,2]
[408292782,1773361832872,-737.018681,0.00016641,7]
[408292783,1773361832882,-192.69,0.00016774,2]
[408292784,1773361832891,-1506.27399359,0.0001685,2]
[408292785,1773361832901,-200.0,0.00016872,2]
[408292786,1773361832911,-151.0,0.00016872,2]
[408292788,1773361832920,-151.0,0.00016872,2]
[408292790,1773361832930,-151.0,0.00016872,2]
[408292792,1773361832939,-511.0,0.00016881,2]
[408292794,1773361832949,-4000.0,0.00016882,2]
[408292795,1773361832958,-1500.0,0.00016925,2]
[408292796,1773361832967,-3331.84666907,0.0001695,2]
[408292798,1773361832977,-300.0,0.00017,2]
[408292799,1773361832986,-507.0,0.00017,2]
[408292800,1773361832996,-212.58976084,0.0001704,2]
[408292801,1773361833005,-3173.57426313,0.00017049,2]
[408292802,1773361833016,-313.93222112,0.00017049,2]
[408292803,1773361833026,-240.82004255,0.00017049,2]
[408292804,1773361833036,-500.0,0.00017049,2]
[408292805,1773361833047,-3661.5618116,0.0001705,2]
[408292806,1773361833056,-104362.15502158,0.0001705,2]
[408292808,1773361833068,-157434.93170495,0.0001705,2]
[408292809,1773361833082,-104765.37447179,0.0001705,2]
[408292810,1773361833097,-275019.65257651,0.0001705,2]
[408292811,1773361833116,-1258.80730316,0.0001705,2]
[408292812,1773361833127,-1296.44850723,0.0001705,2]
[408292813,1773361833152,-579.31253288,0.0001705,2]
[408292814,1773361833164,-2217.66598736,0.0001705,2]
[408292818,1773361839565,-282.96106156,0.000169,2]
[408292820,1773361839575,-500.0,0.00017049,2]
[408292821,1773361839589,-500.0,0.00017049,2]
[408292823,1773361839599,-213.19151242,0.00017049,2]
[408292825,1773361839609,-500.0,0.00017049,2]
[408292827,1773361839619,-500.0,0.00017049,2]
[408292828,1773361839628,-500.0,0.00017049,2]
[408292829,1773361839638,-500.0,0.00017049,2]
[408292830,1773361839647,-500.0,0.00017049,2]
[408292831,1773361839659,-500.0,0.00017049,2]
[408292832,1773361839669,-500.0,0.00017049,2]
[408292833,1773361839678,-500.0,0.00017049,2]
[408292834,1773361839687,-607.25668342,0.00017049,2]
[408292835,1773361839698,-500.0,0.00017049,2]
[408292836,1773361839707,-500.0,0.00017049,2]
[408292837,1773361839716,-500.0,0.00017049,2]
[408292838,1773361839725,-500.0,0.00017049,2]
[408292839,1773361839735,-500.0,0.00017049,2]
[408292840,1773361839745,-500.0,0.00017049,2]
[408292841,1773361839754,-500.0,0.00017049,2]
[408292842,1773361839763,-500.0,0.00017049,2]
[408292843,1773361839773,-500.0,0.00017049,2]
[408292844,1773361839782,-500.0,0.00017049,2]
[408292845,1773361839793,-500.0,0.00017049,2]
[408292846,1773361839803,-3569.3892629,0.0001705,2]
[408292847,1773361839814,-25878.16087179,0.0001705,2]
[408292848,1773361839829,-3031.01772585,0.0001705,2]
[408292849,1773361839847,-581.1401268,0.0001705,2]
[408292850,1773361839858,-340.64224758,0.0001705,2]
[408292851,1773361839870,-609.36371578,0.0001705,2]
[408292863,1773361840212,-3571.35,0.0001705,2]
[408292865,1773361840223,-1407.52319047,0.0001705,2]
[408292880,1773361840343,-9584.06557699,0.0001705,2]
[408292883,1773361840354,-9087.54389128,0.0001705,2]
[408292885,1773361840367,-1802.58189323,0.0001705,2]
[408292910,1773361840606,-1186.2567653,0.0001705,2]
[408292912,1773361840618,-776.85608159,0.0001705,2]
[408292930,1773361843025,-10684.09376945,0.000164,2]
[408292931,1773361843312,-28.52569533,0.000164,2]
[408293005,1773361845975,-1692.2736255,0.000164,2]
[408293006,1773361845986,-703.08573312,0.000164,2]
[408293007,1773361845998,-303.68019955,0.000164,2]
[408293008,1773361846009,-154022.454496,0.000164,2]
[408293009,1773361846020,-601.71500188,0.000164,2]
[408293010,1773361846031,-479.43761552,0.000164,2]
[408293011,1773361846043,-144260.62368155,0.000164,2]
[408293012,1773361846054,-467.74106694,0.000164,2]
[408293013,1773361846147,-505.0,0.000164,2]
[408293014,1773361846159,-14595.78494783,0.000164,2]
[408293015,1773361846170,-1680.20596485,0.000164,2]
[408293019,1773362056343,-421.153531,0.00015803,7]
[408293020,1773362056364,-2254.947,0.00016072,2]
[408293021,1773362056386,-173.084,0.00016072,2]
[408293022,1773362056409,-300.0,0.00016299,2]
[408293023,1773362056430,-300.0,0.00016299,2]
[408293024,1773362056452,-471.0,0.00016299,2]
[408293025,1773362056473,-300.0,0.00016299,2]
[408293026,1773362056494,-2313.96738205,0.000163,2]
[408293027,1773362056518,-5925.84808695,0.000163,2]
[408293044,1773362865494,1271.65,0.0002,120]
[408293050,1773363031962,-12067.37,0.0001516,2]
[408293051,1773363031971,-277.0,0.00015246,2]
[408293052,1773363031980,-586.06,0.00015246,2]
[408293053,1773363031989,-3442.24,0.00015325,2]
[408293054,1773363031999,-3293.96085593,0.00015393,2]
[408293055,1773363032009,-1200.0,0.00015459,2]
[408293056,1773363032019,-300.0,0.00015459,2]
[408293057,1773363032028,-2000.0,0.0001546,2]
[408293058,1773363032038,-581.855855,0.00015484,7]
[408293059,1773363032047,-287.0,0.00015607,2]
[408293060,1773363032056,-300.0,0.00015607,2]
[408293061,1773363032065,-704.62,0.00015608,2]
[408293062,1773363032074,-287.0,0.0001567,2]
[408293063,1773363032092,-3344.48,0.00015671,2]
[408293064,1773363032103,-500.0,0.00015703,2]
[408293065,1773363032113,-1696.7,0.00015894,2]
[408293066,1773363032122,-500.0,0.00015922,2]
[408293067,1773363032132,-1110.03,0.0001599,2]
[408293068,1773363032142,-1220.98852309,0.00016125,2]
[408293069,1773363032152,-5487.29720987,0.00016125,2]
[408293070,1773363032161,-500.42269265,0.00016173,2]
[408293071,1773363032171,-500.0,0.00016173,2]
[408293073,1773363032180,-500.0,0.00016173,2]
[408293075,1773363032190,-500.0,0.00016173,2]
[408293077,1773363032199,-500.0,0.00016173,2]
[408293079,1773363032208,-216.66372556,0.00016173,2]
[408293080,1773363032218,-438.09943353,0.00016173,2]
[408293083,1773363032227,-274.99671232,0.00016173,2]
[408293086,1773363032237,-187.24074441,0.00016173,2]
[408293089,1773363032247,-212.58976085,0.0001619,2]
[408293092,1773363032256,-43602.38263487,0.000162,2]
[408293096,1773363032269,-7727.38511998,0.000162,2]
[408293100,1773363032283,-6262.91342666,0.000162,2]
[408293104,1773363032295,-2500.0,0.000162,2]
[408293107,1773363032307,-393898.55208554,0.000162,2]
[408293110,1773363032322,-559.77878,0.000162,2]
[408293121,1773363038129,-320.51304772,0.00016199,2]
[408293122,1773363038139,-500.0,0.00016199,2]
[408293123,1773363038148,-168.57402979,0.00016199,2]
[408293124,1773363038158,-500.0,0.00016199,2]
[408293125,1773363038168,-514.06642456,0.00016199,2]
[408293126,1773363038178,-500.0,0.00016199,2]
[408293127,1773363038188,-500.0,0.00016199,2]
[408293128,1773363038198,-500.0,0.00016199,2]
[408293129,1773363038207,-500.0,0.00016199,2]
[408293130,1773363038216,-500.0,0.00016199,2]
[408293131,1773363038226,-500.0,0.00016199,2]
[408293132,1773363038235,-500.0,0.00016199,2]
[408293133,1773363038244,-500.0,0.00016199,2]
[408293134,1773363038254,-500.0,0.00016199,2]
[408293135,1773363038263,-500.0,0.00016199,2]
[408293136,1773363038272,-500.0,0.00016199,2]
[408293137,1773363038282,-500.0,0.00016199,2]
[408293138,1773363038291,-500.0,0.00016199,2]
[408293139,1773363038302,-500.0,0.00016199,2]
[408293140,1773363038312,-500.0,0.00016199,2]
[408293141,1773363038321,-578.45905232,0.00016199,2]
[408293142,1773363038330,-500.0,0.00016199,2]
[408293143,1773363038339,-500.0,0.00016199,2]
[408293145,1773363038348,-500.0,0.00016199,2]
[408293147,1773363038357,-500.0,0.00016199,2]
[408293149,1773363038366,-500.0,0.00016199,2]
[408293151,1773363038376,-500.0,0.00016199,2]
[408293153,1773363038385,-500.0,0.00016199,2]
[408293155,1773363038394,-500.0,0.00016199,2]
[408293157,1773363038403,-500.0,0.00016199,2]
[408293158,1773363038412,-500.0,0.00016199,2]
[408293160,1773363038424,-500.0,0.00016199,2]
[408293162,1773363038433,-500.0,0.00016199,2]
[408293164,1773363038443,-500.0,0.00016199,2]
[408293167,1773363038460,-500.0,0.00016199,2]
[408293169,1773363038472,-500.0,0.00016199,2]
[408293171,1773363038481,-18179.88744561,0.000162,2]
[408293173,1773363038495,-13354.84149456,0.000162,2]
[408293191,1773363040359,-207.08946658,0.000162,2]
[408293192,1773363040374,-644.20590704,0.000162,2]
[408293197,1773363043174,-1128785.74209449,0.000162,2]
[408293198,1773363043229,-50005.0,0.000162,2]
[408293199,1773363043240,-679.31577003,0.000162,2]
[408293200,1773363043285,-900.05641542,0.000162,2]
[408293201,1773363043297,-1131.51433103,0.000162,2]
[408293202,1773363043340,-8862.7194782,0.000162,2]
[408293233,1773363046119,-10766.0537625,0.000162,2]
[408293234,1773363046174,-297500.72890425,0.000162,2]
[408293244,1773363358493,2175.54,0.00012475,2]
[408293245,1773363398289,202.93,0.00012124,2]
[408293248,1773363590078,1000.0,0.00014,2]
[408293249,1773363592898,4309.0,0.00014341,2]
[408293260,1773363851291,163.86,0.000143,2]
[408293264,1773363928512,549.1,7.372e-05,2]
[408293265,1773363928764,549.1,7.76e-05,2]
[408293266,1773363928953,549.1,8.148e-05,2]
[408293267,1773363929159,549.1,8.536e-05,2]
[408293268,1773363929576,549.1,8.924e-05,2]
[408293269,1773363929800,549.1,9.312e-05,2]
[408293270,1773363930019,549.1,9.7e-05,2]
[408293271,1773363930527,549.1,0.00010088,2]
[408293272,1773363930555,549.1,0.00010476,2]
[408293273,1773363930762,549.1,0.00010864,2]
[408293274,1773363930975,549.1,0.00011252,2]
[408293275,1773363931177,549.1,0.0001164,2]
[408293276,1773363931385,549.1,0.00012028,2]
[408293277,1773363931588,549.1,0.00012416,2]
[408293278,1773363931795,549.1,0.00012804,2]
[408293279,1773363931995,549.1,0.00013192,2]
[408293280,1773363932218,549.1,0.0001358,2]
[408293281,1773363932436,501.45,0.00013968,2]
[408293282,1773363932459,47.65,0.00013968,2]
[408293284,1773364053180,3474.73,0.00014278,2]
[408293285,1773364109273,200.0,0.00014195,2]
[408293286,1773364129296,5876.98,0.00014147,2]
[408293287,1773364166143,-549.1,0.00014356,2]
[408293288,1773364166166,-465.484684,0.00014414,7]
[408293289,1773364166188,-600.0,0.00014486,2]
[408293290,1773364166209,-270.0,0.00014559,2]
[408293291,1773364166231,-166.66,0.00014559,2]
[408293292,1773364166252,-150.0,0.00014701,2]
[408293293,1773364166271,-549.1,0.00014744,2]
[408293294,1773364166292,-150.0,0.00014764,2]
[408293295,1773364166313,-1074.62094424,0.00014841,2]
[408293296,1773364166333,-1500.0,0.00014852,2]
[408293297,1773364166354,-82.02695976,0.00014866,2]
[408293298,1773364193400,308.83349618,0.00013859,2]
[408293305,1773364232173,-84.63304024,0.00014866,2]
[408293306,1773364232183,-273.0,0.00014866,2]
[408293307,1773364232192,-1010.14,0.00014891,2]
[408293308,1773364232201,-300.0,0.00014923,2]
[408293309,1773364232210,-1200.0,0.00014923,2]
[408293310,1773364232219,-300.0,0.00014923,2]
[408293311,1773364232228,-496.38,0.00014924,2]
[408293312,1773364232237,-4000.0,0.00014924,2]
[408293313,1773364232246,-14820.21649416,0.00014967,2]
[408293314,1773364232255,-1017.4904359,0.00014967,2]
[408293315,1773364232265,-7634.48479467,0.00014967,2]
[408293316,1773364232274,-7051.09478023,0.00014967,2]
[408293317,1773364232284,-177.15813404,0.00015026,2]
[408293318,1773364232294,-300.0,0.00015034,2]
[408293319,1773364232303,-500.0,0.00015035,2]
[408293320,1773364232312,-221.21041052,0.00015035,2]
[408293321,1773364232321,-203.34619344,0.00015035,2]
[408293322,1773364232330,-358.90151389,0.00015035,2]
[408293324,1773364232339,-500.0,0.00015035,2]
[408293325,1773364232348,-581.56258669,0.00015035,2]
[408293326,1773364232357,-500.0,0.00015035,2]
[408293327,1773364232366,-194.00601262,0.00015035,2]
[408293328,1773364232376,-500.0,0.00015035,2]
[408293329,1773364232386,-500.0,0.00015035,2]
[408293331,1773364232395,-500.0,0.00015035,2]
[408293333,1773364232404,-500.0,0.00015035,2]
[408293335,1773364232413,-500.0,0.00015035,2]
[408293337,1773364232422,-500.0,0.00015035,2]
[408293339,1773364232431,-500.0,0.00015035,2]
[408293341,1773364232440,-500.0,0.00015035,2]
[408293342,1773364232449,-500.0,0.00015035,2]